fUST/lending_fUST_20250125
["ID","MTS","AMOUNT","RATE_DAILY","PERIOD"]
[350350106,1737808238340,-349.00917509,0.00017567,2]
[350350109,1737808238352,-150.99082491,0.00017567,2]
[350350111,1737808238361,-500.0,0.00017567,2]
[350350113,1737808238371,-500.0,0.00017567,2]
[350350115,1737808238380,-500.0,0.00017567,2]
[350350117,1737808238389,-500.0,0.00017567,2]
[350350119,1737808238398,-500.0,0.00017567,2]
[350350121,1737808238407,-500.0,0.00017567,2]
[350350123,1737808238417,-500.0,0.00017567,2]
[350350125,1737808238426,-500.0,0.00017567,2]
[350350127,1737808238436,-500.0,0.00017567,2]
[350350129,1737808238446,-500.0,0.00017567,2]
[350350131,1737808238455,-500.0,0.00017567,2]
[350350133,1737808238464,-1563.46483733,0.00017567,2]
[350350312,1737808240363,-193.00516267,0.00017567,2]
[350350314,1737808240373,-500.0,0.00017567,2]
[350350316,1737808240382,-731.0,0.00017567,2]
[350350318,1737808240392,-922.71,0.00017567,2]
[350350320,1737808240401,-500.0,0.00017567,2]
[350350322,1737808240410,-500.0,0.00017567,2]
[350350324,1737808240420,-500.0,0.00017568,2]
[350350326,1737808240429,-500.0,0.00017568,2]
[350350328,1737808240438,-680.65,0.00017568,2]
[350350330,1737808240447,-500.0,0.00017568,2]
[350350332,1737808240456,-500.0,0.00017568,2]
[350350334,1737808240465,-500.0,0.00017568,2]
[350350336,1737808240475,-842.95,0.00017568,2]
[350350338,1737808240484,-592.28904667,0.00017568,2]
[350350340,1737808240492,-500.0,0.00017568,2]
[350350342,1737808240501,-551.61,0.00017568,2]
[350350344,1737808240510,-501.08513157,0.00017568,2]
[350350346,1737808240520,-500.0,0.00017568,2]
[350350348,1737808240531,-500.0,0.00017568,2]
[350350350,1737808240539,-500.0,0.00017568,2]
[350350352,1737808240549,-500.0,0.00017568,2]
[350350354,1737808240558,-524.4,0.00017568,2]
[350350357,1737808240567,-500.0,0.00017568,2]
[350350358,1737808240577,-500.0,0.00017568,2]
[350350360,1737808240586,-693.25,0.00017568,2]
[350350363,1737808240595,-500.0,0.00017568,2]
[350350365,1737808240604,-500.0,0.00017568,2]
[350350366,1737808240614,-500.0,0.00017568,2]
[350350368,1737808240623,-809.28,0.00017568,2]
[350350370,1737808240633,-500.0,0.00017568,2]
[350350372,1737808240643,-500.0,0.00017568,2]
[350350374,1737808240652,-500.0,0.00017568,2]
[350350376,1737808240662,-500.0,0.00017568,2]
[350350379,1737808240671,-208.32218055,0.00017568,2]
[350350381,1737808240680,-603.69,0.00017568,2]
[350350383,1737808240689,-500.0,0.00017568,2]
[350350385,1737808240698,-500.0,0.00017568,2]
[350350387,1737808240707,-174.52746545,0.00017568,2]
[350350389,1737808240716,-2407.07,0.00017568,2]
[350350391,1737808240726,-1099.56,0.00017568,2]
[350350393,1737808240735,-500.0,0.00017568,2]
[350350395,1737808240744,-500.0,0.00017568,2]
[350350397,1737808240753,-358.05466436,0.00017568,2]
[350350399,1737808240763,-500.0,0.00017568,2]
[350350401,1737808240773,-500.0,0.00017568,2]
[350350403,1737808240782,-500.0,0.00017568,2]
[350350405,1737808240791,-500.0,0.00017568,2]
[350350407,1737808240800,-500.0,0.00017568,2]
[350350409,1737808240810,-11044.11,0.00017568,2]
[350350411,1737808240819,-500.0,0.00017568,2]
[350350413,1737808240828,-2339.38,0.00017568,2]
[350350415,1737808240838,-500.0,0.00017568,2]
[350350417,1737808240847,-1125.17,0.00017568,2]
[350350419,1737808240858,-500.0,0.00017568,2]
[350350421,1737808240867,-549.21,0.00017568,2]
[350350422,1737808240876,-500.0,0.00017568,2]
[350350425,1737808240886,-3140.34,0.00017568,2]
[350350427,1737808240895,-558.95,0.00017568,2]
[350350429,1737808240905,-10986.69,0.00017568,2]
[350350431,1737808240914,-593.14,0.00017568,2]
[350350433,1737808240924,-500.0,0.00017568,2]
[350350435,1737808240933,-500.0,0.00017568,2]
[350350437,1737808240943,-150.28982545,0.00017568,2]
[350350439,1737808240953,-1344.18,0.00017568,2]
[350350441,1737808240962,-2061.8,0.00017568,2]
[350350443,1737808240971,-500.0,0.00017568,2]
[350350445,1737808240981,-500.0,0.00017568,2]
[350350447,1737808240990,-1529.78,0.00017568,2]
[350350449,1737808241000,-500.0,0.00017568,2]
[350350451,1737808241009,-272.06737023,0.00017568,2]
[350350453,1737808241018,-905.43,0.00017568,2]
[350350455,1737808241030,-986.08,0.00017568,2]
[350350457,1737808241039,-716.43,0.00017568,2]
[350350459,1737808241049,-513.85094787,0.00017568,2]
[350350461,1737808241058,-638.32258185,0.00017568,2]
[350350463,1737808241068,-607.6,0.00017568,2]
[350350465,1737808241077,-512.72772952,0.00017568,2]
[350350467,1737808241087,-25818.01,0.00017568,2]
[350350469,1737808241096,-655.16,0.00017568,2]
[350350471,1737808241105,-282.69018352,0.00017568,2]
[350350473,1737808241116,-265.33062209,0.00017568,2]
[350352749,1737808525264,318.38386445,0.00024,120]
[350352750,1737808616259,258.061803,0.00013973,2]
[350352752,1737808752353,157.16978,0.0002068,30]
[350352753,1737808797506,166.182605,0.00022,30]
[350352788,1737809432345,-206.765,0.00016358,2]
[350352790,1737809432355,-206.765,0.0001669,2]
[350352792,1737809432364,-161.98547783,0.00017465,2]
[350352794,1737809432373,-64.13258439,0.00017465,2]
[350352796,1737809432385,-1272.96840391,0.00017465,2]
[350352798,1737809432394,-1796.01172821,0.00017507,2]
[350352800,1737809432403,-300.0,0.00017563,2]
[350352802,1737809432412,-500.0,0.00017564,2]
[350352804,1737809432422,-500.0,0.00017564,2]
[350352806,1737809432431,-500.0,0.00017564,2]
[350352808,1737809432440,-500.0,0.00017564,2]
[350352810,1737809432449,-210.68911685,0.00017564,2]
[350352813,1737809432467,-289.31088315,0.00017564,2]
[350352815,1737809432476,-500.0,0.00017564,2]
[350352817,1737809432485,-801.08,0.00017564,2]
[350352819,1737809432495,-500.0,0.00017564,2]
[350352821,1737809432505,-500.0,0.00017564,2]
[350352823,1737809432520,-1683.28,0.00017564,2]
[350352825,1737809432529,-500.0,0.00017564,2]
[350352827,1737809432538,-500.0,0.00017564,2]
[350352829,1737809432548,-884.26,0.00017564,2]
[350352831,1737809432558,-500.0,0.00017564,2]
[350352833,1737809432567,-500.0,0.00017564,2]
[350352835,1737809432577,-500.0,0.00017564,2]
[350352837,1737809432587,-2241.9,0.00017564,2]
[350352839,1737809432596,-500.0,0.00017564,2]
[350352841,1737809432606,-500.0,0.00017564,2]
[350352843,1737809432615,-398.36692463,0.00017564,2]
[350353114,1737809438212,-101.63307537,0.00017564,2]
[350353116,1737809438222,-590.49141315,0.00017565,5]
[350353367,1737809440591,-599.89531609,0.00017564,2]
[350353370,1737809440603,-325.09766889,0.00017564,2]
[350353372,1737809440612,-500.0,0.00017564,2]
[350353373,1737809440621,-500.0,0.00017564,2]
[350353376,1737809440631,-2406.31451742,0.00017565,5]
[350353754,1737809444619,-1468.76807502,0.00017389,2]
[350353762,1737809444676,-623.85294754,0.00017389,2]
[350353764,1737809444686,-500.0,0.00017564,2]
[350353766,1737809444696,-500.0,0.00017564,2]
[350353768,1737809444705,-11681.35382843,0.00017565,5]
[350353770,1737809444715,-1662.76962337,0.00017565,5]
[350353898,1737809446314,-611.420002,0.00017565,5]
[350354631,1737809672219,245.158712,0.00013973,2]
[350354632,1737809869642,177.204197,0.00016027,2]
[350354633,1737809885429,177.204197,0.00016027,2]
[350354634,1737809900889,177.204197,0.00016027,2]
[350354635,1737809924483,177.204197,0.00016027,2]
[350354636,1737809941062,159.55026577,0.00016027,2]
[350354638,1737810043014,177.204197,0.00016027,2]
[350354640,1737810249910,588.0,0.00022,120]
[350354688,1737810632565,-3646.15538907,0.00016188,2]
[350354700,1737810632675,-5364.85360343,0.00016188,2]
[350354703,1737810632686,-250.0,0.00016198,2]
[350354705,1737810632695,-463.8901294,0.00016286,2]
[350354707,1737810632704,-177.204197,0.00016353,2]
[350354709,1737810632714,-300.0,0.00016437,2]
[350354711,1737810632724,-1215.1295236,0.00016438,2]
[350354713,1737810632736,-354.0685108,0.00016641,2]
[350354715,1737810632746,-210.224,0.0001669,2]
[350354717,1737810632755,-155.04031048,0.0001669,2]
[350354719,1737810632765,-1240.72770049,0.00017461,2]
[350354721,1737810632774,-177.58086249,0.00017461,2]
[350354723,1737810632784,-156.29162225,0.00017525,2]
[350354725,1737810632794,-1971.694,0.00017535,2]
[350354727,1737810632803,-151.0,0.00017553,2]
[350354729,1737810632813,-500.0,0.00017559,2]
[350354731,1737810632823,-500.0,0.0001756,2]
[350354733,1737810632833,-1613.14,0.0001756,2]
[350354735,1737810632843,-679.7,0.0001756,2]
[350354737,1737810632853,-600.25,0.0001756,2]
[350354739,1737810632863,-500.0,0.0001756,2]
[350354741,1737810632872,-500.0,0.0001756,2]
[350354743,1737810632882,-500.0,0.0001756,2]
[350354745,1737810632891,-500.0,0.0001756,2]
[350354747,1737810632901,-2205.96,0.0001756,2]
[350354749,1737810632910,-500.0,0.0001756,2]
[350354751,1737810632920,-317.64707151,0.00017561,2]
[350354753,1737810632929,-7339.0798795,0.00017561,5]
[350354756,1737810632941,-2963.70956642,0.00017561,5]
[350354757,1737810632950,-3637.57,0.00017561,2]
[350354760,1737810632959,-1736.24,0.00017561,2]
[350354761,1737810632969,-1447.39313586,0.00017561,2]
[350355319,1737810638456,-18.64686414,0.00017561,2]
[350355321,1737810638466,-500.0,0.00017561,2]
[350355323,1737810638475,-38.03170316,0.00017561,2]
[350355538,1737810640582,-829.66829684,0.00017561,2]
[350355540,1737810640592,-627.87,0.00017561,2]
[350355542,1737810640602,-56.10244684,0.00017561,2]
[350355692,1737810644372,-1504.95,0.0001756,2]
[350355693,1737810644428,-1981.05,0.0001756,2]
[350355694,1737810644437,-526.17755316,0.00017561,2]
[350355695,1737810644447,-802.2505199,0.00017561,2]
[350355705,1737810646461,-217.7794801,0.00017561,2]
[350355706,1737810646471,-645.92,0.00017561,2]
[350355707,1737810646481,-106.4955199,0.00017561,2]
[350355711,1737810659911,4368.85193848,0.00015056,2]
[350355712,1737810659946,5631.14806152,0.00015056,2]
[350355713,1737810674802,232.900776,0.00013973,2]
[350355714,1737810731639,4135.95116248,0.00015056,2]
[350355715,1737810731672,5864.04883752,0.00015056,2]
[350355716,1737810799373,4135.95116248,0.00015056,2]
[350355717,1737810799407,5864.04883752,0.00015056,2]
[350355718,1737810814686,4135.95116248,0.00015056,2]
[350355719,1737810814718,5864.04883752,0.00015056,2]
[350355720,1737810831252,4135.95116248,0.00015056,2]
[350355721,1737810831286,5864.04883752,0.00015056,2]
[350355722,1737810850515,1372.22,0.00015056,2]
[350355734,1737811826879,221.255737,0.00013973,2]
[350355758,1737811833070,-212.971,0.00016358,2]
[350355760,1737811833080,-322.2590687,0.00016529,2]
[350355762,1737811833091,-212.971,0.0001669,2]
[350355763,1737811833101,-5009.06029402,0.00017,2]
[350355764,1737811833111,-3384.60719913,0.0001728,2]
[350355765,1737811833122,-177.58086248,0.00017458,2]
[350355766,1737811833134,-500.0,0.00017491,2]
[350355767,1737811833144,-300.0,0.00017497,2]
[350355768,1737811833154,-6216.64351259,0.00017498,2]
[350355771,1737811838552,-212.971,0.00016194,2]
[350355772,1737811838563,-5400.15674005,0.00017498,2]
[350355773,1737811838572,-354.0685108,0.000175,2]
[350355774,1737811838583,-151.0,0.00017548,2]
[350355775,1737811838594,-1352.68,0.00017556,2]
[350355776,1737811838605,-500.0,0.00017556,2]
[350355777,1737811838621,-651.38,0.00017556,2]
[350355778,1737811838638,-500.0,0.00017556,2]
[350355779,1737811838648,-822.41,0.00017556,2]
[350355780,1737811838658,-563.9213375,0.00017556,2]
[350355781,1737811838673,-500.0,0.00017556,2]
[350355782,1737811838683,-500.0,0.00017556,2]
[350355783,1737811838694,-500.0,0.00017557,2]
[350355784,1737811838704,-500.0,0.00017557,2]
[350355785,1737811838714,-500.0,0.00017557,2]
[350355786,1737811838723,-306.62787982,0.00017557,2]
[350355787,1737811838733,-500.0,0.00017557,2]
[350355788,1737811838743,-500.0,0.00017557,2]
[350355789,1737811838754,-500.0,0.00017557,2]
[350355790,1737811838763,-500.0,0.00017557,2]
[350355791,1737811838773,-500.0,0.00017557,2]
[350355792,1737811838782,-500.0,0.00017557,2]
[350355793,1737811838793,-500.0,0.00017557,2]
[350355794,1737811838802,-500.0,0.00017557,2]
[350355795,1737811838812,-315.0,0.00017557,2]
[350355796,1737811838822,-500.0,0.00017557,2]
[350355797,1737811838831,-500.0,0.00017557,2]
[350355798,1737811838841,-500.0,0.00017557,2]
[350355799,1737811838851,-500.0,0.00017557,2]
[350355800,1737811838860,-500.0,0.00017557,2]
[350355801,1737811838870,-444.16684697,0.00017557,2]
[350355803,1737811838879,-176.77980324,0.00017557,2]
[350355805,1737811838889,-284.83788162,0.00017557,2]
[350355807,1737811838903,-215.16211838,0.00017557,2]
[350355808,1737811838912,-500.0,0.00017557,2]
[350355809,1737811838922,-1404.95,0.00017557,2]
[350355810,1737811838931,-3340.75,0.00017557,2]
[350355811,1737811838941,-831.55,0.00017557,2]
[350355812,1737811838951,-601.7,0.00017557,2]
[350355813,1737811838960,-651.71668387,0.00017557,2]
[350355825,1737811840801,-322.0,0.00017556,2]
[350355826,1737811840862,-1792.05,0.00017556,2]
[350355828,1737811840872,-246.00364534,0.00017557,2]
[350355864,1737811844648,-501.23999994,0.00017557,2]
[350355865,1737811844711,-264.92967085,0.00017557,2]
[350355866,1737811844720,-733.14,0.00017557,2]
[350355867,1737811844729,-500.0,0.00017557,2]
[350355868,1737811844739,-619.01,0.00017557,2]
[350355869,1737811844748,-1811.1,0.00017557,2]
[350355870,1737811844758,-1847.34348275,0.00017557,2]
[350355871,1737811844770,-809.61651725,0.00017557,2]
[350355872,1737811844779,-558.02,0.00017557,2]
[350355873,1737811844789,-153.98931206,0.00017557,2]
[350355874,1737811844798,-904.62,0.00017557,2]
[350355875,1737811844808,-160.90885111,0.00017557,2]
[350355876,1737811844817,-2157.38,0.00017557,2]
[350355877,1737811844827,-1218.24,0.00017557,2]
[350355878,1737811844837,-500.0,0.00017557,2]
[350355879,1737811844846,-500.0,0.00017557,2]
[350355880,1737811844856,-500.0,0.00017557,2]
[350355881,1737811844865,-237.24088903,0.00017557,2]
[350355882,1737811844885,-262.75911097,0.00017557,2]
[350355883,1737811844896,-500.0,0.00017557,2]
[350355884,1737811844906,-500.0,0.00017557,2]
[350355885,1737811844916,-995.68,0.00017557,2]
[350355886,1737811844925,-578.54,0.00017557,2]
[350355887,1737811844935,-1074.58,0.00017557,2]
[350355888,1737811844944,-500.0,0.00017557,2]
[350355889,1737811844955,-500.0,0.00017557,2]
[350355890,1737811844964,-500.0,0.00017557,2]
[350355891,1737811844973,-9099.77024193,0.00017557,2]
[350355892,1737811844985,-1000.0,0.00017557,2]
[350355893,1737811845072,-528.77975807,0.00017557,2]
[350355894,1737811845084,-177.18024193,0.00017557,2]
[350355911,1737811961922,500.0,0.00024,120]
[350355912,1737811982596,500.0,0.00024,120]
[350355913,1737812024046,-214.883,0.0001668,2]
[350355914,1737812024082,-52.92623668,0.00017381,2]
[350355915,1737812024096,-214.883,0.00017381,2]
[350355916,1737812024109,-49.49852664,0.00017381,2]
[350355917,1737812024119,-267.80923668,0.00017497,2]
[350355919,1737812360937,200.0,0.00024,120]
[350355922,1737812662020,210.19295,0.00013973,2]
[350355925,1737812819749,50000.0,0.00022,30]
[350355926,1737812830553,3386.2326724,0.00024,120]
[350355950,1737813031937,-1643.71114581,0.00016557,2]
[350355957,1737813031996,-503.86842809,0.00016557,2]
[350355959,1737813032005,-206.062,0.0001668,2]
[350355961,1737813032015,-4634.54269766,0.00017364,2]
[350355963,1737813032025,-300.0,0.00017495,2]
[350355965,1737813032034,-500.0,0.00017496,2]
[350355967,1737813032043,-500.0,0.00017496,2]
[350355969,1737813032053,-500.0,0.00017496,2]
[350355972,1737813032062,-416.97745432,0.00017496,2]
[350355974,1737813032072,-500.0,0.00017496,2]
[350355976,1737813032081,-518.5598969,0.00017496,2]
[350355978,1737813032090,-301.33514693,0.00017496,2]
[350355979,1737813032099,-500.0,0.00017496,2]
[350355982,1737813032108,-500.0,0.00017496,2]
[350355984,1737813032117,-1489.57,0.00017496,2]
[350355985,1737813032126,-527.83828862,0.00017496,2]
[350355987,1737813032135,-624.24,0.00017496,2]
[350355989,1737813032145,-500.0,0.00017496,2]
[350355991,1737813032154,-767.71,0.00017496,2]
[350355993,1737813032163,-500.0,0.00017496,2]
[350355996,1737813032172,-502.78082994,0.00017496,2]
[350355998,1737813032182,-500.0,0.00017497,2]
[350356000,1737813032191,-5665.0726364,0.00017497,2]
[350356003,1737813032209,-5256.5973636,0.00017497,2]
[350356005,1737813032219,-763.54706082,0.00017497,2]
[350356009,1737813032250,-445.40293918,0.00017497,2]
[350356011,1737813032259,-500.0,0.00017554,2]
[350356013,1737813032268,-500.0,0.00017554,2]
[350356015,1737813032278,-500.0,0.00017554,2]
[350356017,1737813032288,-710.38,0.00017554,2]
[350356019,1737813032297,-506.55253723,0.00017554,2]
[350356021,1737813032307,-500.0,0.00017554,2]
[350356023,1737813032316,-500.0,0.00017554,2]
[350356025,1737813032325,-874.45,0.00017554,2]
[350356027,1737813032335,-443.82513279,0.00017554,2]
[350356029,1737813032345,-511.6,0.00017554,2]
[350356031,1737813032354,-416.00689137,0.00017554,2]
[350357840,1737813054888,291.24883,0.00024,120]
[350363252,1737813193639,3000.0,0.00022,30]
[350363256,1737813680322,962.92446254,0.00024,120]
[350363257,1737813702225,199.683302,0.00013973,2]
[350363259,1737814082487,3000.0,0.00022,30]
[350363260,1737814097310,-192.770672,0.0001629,2]
[350363261,1737814097335,-192.770672,0.00016454,2]
[350363262,1737814097356,-395.0,0.00017294,2]
[350363263,1737814097379,-1255.91342079,0.00017372,2]
[350363264,1737814097400,-180.6865621,0.00017385,2]
[350363265,1737814097422,-300.0,0.00017454,2]
[350363266,1737814097445,-500.0,0.00017455,2]
[350363267,1737814097468,-1457.63,0.00017455,2]
[350363268,1737814097490,-619.07,0.00017455,2]
[350363269,1737814097510,-615.58780601,0.00017455,2]
[350363270,1737814097531,-811.5,0.00017455,2]
[350363271,1737814097554,-151.4670227,0.00017455,2]
[350363272,1737814097578,-500.0,0.00017455,2]
[350363273,1737814097601,-2091.02,0.00017455,2]
[350363274,1737814097624,-500.0,0.00017455,2]
[350363275,1737814097648,-3275.6,0.00017455,2]
[350363276,1737814097673,-1625.81,0.00017455,2]
[350363277,1737814097698,-1311.86,0.00017455,2]
[350363278,1737814097723,-500.0,0.00017455,2]
[350363279,1737814097745,-817.73,0.00017455,2]
[350363280,1737814097771,-500.0,0.00017455,2]
[350363281,1737814097793,-576.63,0.00017455,2]
[350363282,1737814097819,-555.6,0.00017455,2]
[350363283,1737814097843,-31073.3538444,0.00017456,2]
[350363346,1737814232217,-180.6865621,0.00017385,2]
[350363348,1737814232227,-175.81566324,0.00017394,2]
[350363350,1737814232236,-300.0,0.00017454,2]
[350363352,1737814232246,-967.71,0.00017455,2]
[350363354,1737814232255,-614.05,0.00017455,2]
[350363356,1737814232265,-500.0,0.00017455,2]
[350363358,1737814232275,-1767.02,0.00017455,2]
[350363360,1737814232287,-2638.14,0.00017455,2]
[350363362,1737814232296,-500.0,0.00017455,2]
[350363364,1737814232305,-887.76,0.00017455,2]
[350363366,1737814232314,-1396.9,0.00017455,2]
[350363368,1737814232324,-2103.29,0.00017455,2]
[350363369,1737814232333,-500.0,0.00017455,7]
[350363370,1737814232342,-614.1,0.00017455,2]
[350363371,1737814232351,-816.71,0.00017455,2]
[350363372,1737814232363,-1188.32,0.00017455,2]
[350363373,1737814232373,-975.03,0.00017455,2]
[350363374,1737814232382,-500.0,0.00017455,2]
[350363375,1737814232391,-500.0,0.00017455,2]
[350363376,1737814232401,-500.0,0.00017455,2]
[350363377,1737814232410,-610.14,0.00017455,2]
[350363378,1737814232419,-500.0,0.00017455,2]
[350363379,1737814232428,-500.0,0.00017455,2]
[350363380,1737814232437,-1075.77,0.00017455,2]
[350363381,1737814232446,-5837.22960539,0.00017456,2]
[350363382,1737814232455,-500.0,0.00017472,2]
[350363383,1737814232465,-500.0,0.00017473,2]
[350363384,1737814232474,-500.0,0.00017473,2]
[350363385,1737814232483,-500.0,0.00017473,2]
[350363386,1737814232493,-502.11291803,0.00017473,2]
[350363387,1737814232502,-501.05464987,0.00017473,2]
[350363388,1737814232511,-235.92224368,0.00017473,2]
[350363389,1737814232521,-500.0,0.00017473,2]
[350363390,1737814232530,-500.0,0.00017473,2]
[350363391,1737814232539,-504.03346438,0.00017473,2]
[350363392,1737814232549,-500.0,0.00017473,2]
[350363393,1737814232558,-367.40309776,0.00017493,2]
[350363394,1737814232567,-500.0,0.00017493,2]
[350363395,1737814232577,-500.0,0.00017493,2]
[350363396,1737814232587,-500.0,0.00017493,2]
[350363397,1737814232596,-500.0,0.00017493,2]
[350363398,1737814232606,-500.0,0.00017493,2]
[350363399,1737814232615,-500.0,0.00017493,2]
[350363400,1737814232625,-500.0,0.00017493,2]
[350363401,1737814232635,-500.0,0.00017493,2]
[350363402,1737814232645,-596.19549437,0.00017493,2]
[350363403,1737814232654,-500.0,0.00017493,2]
[350363404,1737814232663,-500.0,0.00017493,2]
[350363405,1737814232674,-500.0,0.00017493,2]
[350363406,1737814232683,-3669.53993975,0.00017494,5]
[350363407,1737814232693,-17725.90509546,0.00017494,2]
[350363408,1737814232702,-500.0,0.00017494,2]
[350363409,1737814232712,-500.0,0.00017494,2]
[350363410,1737814232723,-500.0,0.00017494,2]
[350363411,1737814232732,-500.0,0.00017494,2]
[350363412,1737814232742,-500.0,0.00017494,2]
[350363413,1737814232751,-500.0,0.00017494,2]
[350363414,1737814232761,-680.78,0.00017494,2]
[350363415,1737814232771,-500.0,0.00017494,2]
[350363416,1737814232780,-500.0,0.00017494,2]
[350363417,1737814232789,-500.0,0.00017494,2]
[350363418,1737814232799,-500.0,0.00017494,2]
[350363419,1737814232808,-500.0,0.00017494,2]
[350363420,1737814232817,-858.85,0.00017494,2]
[350363421,1737814232830,-500.0,0.00017494,2]
[350363422,1737814232840,-504.62,0.00017494,2]
[350363423,1737814232850,-549.46,0.00017494,2]
[350363424,1737814232859,-500.0,0.00017494,2]
[350363425,1737814232869,-500.0,0.00017494,2]
[350363426,1737814232878,-500.0,0.00017494,2]
[350363427,1737814232887,-500.0,0.00017494,2]
[350363428,1737814232897,-523.38,0.00017494,2]
[350363429,1737814232906,-500.0,0.00017494,2]
[350363430,1737814232918,-500.0,0.00017494,2]
[350363431,1737814232928,-500.0,0.00017494,2]
[350363432,1737814232937,-685.2,0.00017494,2]
[350363433,1737814232947,-500.0,0.00017494,2]
[350363434,1737814232956,-500.0,0.00017494,2]
[350363435,1737814232967,-500.0,0.00017494,2]
[350363436,1737814232976,-500.0,0.00017494,2]
[350363437,1737814232985,-735.72,0.00017494,2]
[350363438,1737814232994,-378.25185781,0.00017494,2]
[350363439,1737814233165,-121.74814219,0.00017494,2]
[350363440,1737814233176,-838.06,0.00017494,2]
[350363441,1737814233186,-429.64422626,0.00017494,2]
[350363449,1737814237987,-549.03653221,0.00017494,5]
[350363889,1737814244012,-2003.89,0.00017455,2]
[350363891,1737814244022,-500.0,0.00017455,2]
[350363893,1737814244031,-932.818251,0.00017494,5]
[350363895,1737814244040,-70.35577374,0.00017494,2]
[350363897,1737814244049,-500.0,0.00017494,2]
[350363899,1737814244059,-151.0,0.00017494,2]
[350363901,1737814244068,-151.0,0.00017494,2]
[350363903,1737814244078,-151.0,0.00017494,2]
[350363905,1737814244088,-161.098568,0.00017494,2]
[350363907,1737814244096,-501.47015796,0.00017494,2]
[350363909,1737814244105,-500.0,0.00017494,2]
[350363911,1737814244115,-500.0,0.00017494,2]
[350363913,1737814244124,-500.0,0.00017494,2]
[350363915,1737814244133,-504.13691919,0.00017494,2]
[350363917,1737814244143,-500.0,0.00017494,2]
[350363919,1737814244152,-503.96767972,0.00017494,2]
[350363921,1737814244161,-500.0,0.00017494,2]
[350363923,1737814244171,-260.49546916,0.00017494,2]
[350363925,1737814244180,-501.17067513,0.00017494,2]
[350363927,1737814244189,-503.08281869,0.00017494,2]
[350363929,1737814244198,-501.11304345,0.00017494,2]
[350363931,1737814244208,-500.0,0.00017494,2]
[350363933,1737814244217,-179.62923,0.00017494,2]
[350363935,1737814244226,-179.62923,0.00017494,2]
[350363937,1737814244236,-2634.1,0.00017494,2]
[350363939,1737814244245,-179.62923,0.00017494,2]
[350363941,1737814244255,-503.37195428,0.00017494,2]
[350363943,1737814244264,-500.0,0.00017494,2]
[350363945,1737814244273,-500.0,0.00017494,2]
[350363947,1737814244285,-179.62923,0.00017494,2]
[350363949,1737814244294,-500.87195955,0.00017494,2]
[350363951,1737814244303,-179.62923,0.00017494,2]
[350363953,1737814244312,-500.92428777,0.00017494,2]
[350363955,1737814244321,-179.62923,0.00017494,2]
[350363957,1737814244332,-503.18711304,0.00017494,2]
[350363959,1737814244341,-500.0,0.00017494,2]
[350363961,1737814244350,-500.0,0.00017494,2]
[350363963,1737814244361,-501.91535257,0.00017494,2]
[350363965,1737814244370,-502.80746839,0.00017494,2]
[350363967,1737814244379,-500.0,0.00017494,2]
[350363969,1737814244389,-202.61316505,0.00017494,2]
[350363971,1737814244397,-500.0,0.00017494,2]
[350363973,1737814244407,-500.0,0.00017494,2]
[350363975,1737814244416,-151.0,0.00017494,2]
[350363977,1737814244425,-500.0,0.00017494,2]
[350363979,1737814244434,-500.0,0.00017494,2]
[350363981,1737814244443,-500.0,0.00017494,2]